{"text_format":"1","workbook":"xlsx","n_sheets":4,"sheets":["TABLEAU_DE_BORD","DONNEES_CODES","INSCRIPTIONS","IMPRESSION"],"not_rendered":{"charts":0,"images":0,"macros":1,"external_links":0,"defined_names":0,"comments":0,"pivot_tables":0},"unopened":[],"bounds":{"document_bytes":16777216,"sheet_cells":100000,"rows_first":2000,"rows_last":500,"rows_between":2000,"halvings":0,"cell_chars":16384,"cell_head_chars":4096},"cells_cut":0,"cells_raw":0,"read":"whole","date_system":"1900"}

{"sheet":"TABLEAU_DE_BORD","index":0,"n_rows":29,"n_cols":24,"rows_kept":29,"cut":false,"hidden":false,"merged":[[17,13,17,18],[20,13,20,18],[23,13,23,18],[18,20,18,24],[20,20,20,21],[20,23,20,24],[19,20,19,21],[19,23,19,24],[22,20,22,24],[2,20,2,24],[5,20,5,24],[8,20,8,24],[11,20,11,24],[14,20,14,24],[0,5,0,24],[17,5,17,11],[20,5,20,11],[23,5,23,11],[26,5,26,11],[2,13,2,18],[5,13,5,18],[8,13,8,18],[11,13,11,18],[14,13,14,18],[2,5,2,11],[5,5,5,11],[8,5,8,11],[11,5,11,11],[14,5,14,11],[26,13,26,18]]}
[null,null,null,null,null,"NOMBRE D'INCRITS DANS CHAQUE DISCIPLINE"]
[]
[null,null,null,null,null,"ANGLAIS",null,null,null,null,null,null,null,"YOGA",null,null,null,null,null,null,"PEINTURE"]
[null,null,null,null,null,"B200","B201","B202","B203","B204","B205","B206",null,"B301","B302","B303","B304","B320","B321",null,null,null,"B375"]
[null,null,null,null,null,{"$f":"COUNTIF(INSCRIPTIONS!N2:N1273,\"B200\")+COUNTIF(INSCRIPTIONS!O2:O1273,\"B200\")+COUNTIF(INSCRIPTIONS!P2:P1273,\"B200\")","v":0},{"$f":"COUNTIF(INSCRIPTIONS!N2:N1273,\"B201\")+COUNTIF(INSCRIPTIONS!O2:O1273,\"B201\")+COUNTIF(INSCRIPTIONS!P2:P1273,\"B201\")","v":0},{"$f":"COUNTIF(INSCRIPTIONS!N2:N1273,\"B202\")+COUNTIF(INSCRIPTIONS!O2:O1273,\"B202\")+COUNTIF(INSCRIPTIONS!P2:P1273,\"B202\")","v":0},{"$f":"COUNTIF(INSCRIPTIONS!N2:N1273,\"B203\")+COUNTIF(INSCRIPTIONS!O2:O1273,\"B203\")+COUNTIF(INSCRIPTIONS!P2:P1273,\"B203\")","v":0},{"$f":"COUNTIF(INSCRIPTIONS!N2:N1273,\"B204\")+COUNTIF(INSCRIPTIONS!O2:O1273,\"B204\")+COUNTIF(INSCRIPTIONS!P2:P1273,\"B204\")","v":0},{"$f":"COUNTIF(INSCRIPTIONS!N2:N1273,\"B205\")+COUNTIF(INSCRIPTIONS!O2:O1273,\"B205\")+COUNTIF(INSCRIPTIONS!P2:P1273,\"B205\")","v":0},{"$f":"COUNTIF(INSCRIPTIONS!N2:N1273,\"B206\")+COUNTIF(INSCRIPTIONS!O2:O1273,\"B206\")+COUNTIF(INSCRIPTIONS!P2:P1273,\"B206\")","v":0},null,{"$f":"COUNTIF(INSCRIPTIONS!N2:N1273,\"B301\")+COUNTIF(INSCRIPTIONS!O2:O1273,\"B301\")+COUNTIF(INSCRIPTIONS!P2:P1273,\"B301\")","v":0},{"$f":"COUNTIF(INSCRIPTIONS!N2:N1273,\"B302\")+COUNTIF(INSCRIPTIONS!O2:O1273,\"B302\")+COUNTIF(INSCRIPTIONS!P2:P1273,\"B302\")","v":0},{"$f":"COUNTIF(INSCRIPTIONS!N2:N1273,\"B303\")+COUNTIF(INSCRIPTIONS!O2:O1273,\"B303\")+COUNTIF(INSCRIPTIONS!P2:P1273,\"B303\")","v":0},{"$f":"COUNTIF(INSCRIPTIONS!N2:N1273,\"B304\")+COUNTIF(INSCRIPTIONS!O2:O1273,\"B304\")+COUNTIF(INSCRIPTIONS!P2:P1273,\"B304\")","v":0},{"$f":"COUNTIF(INSCRIPTIONS!N2:N1273,\"B320\")+COUNTIF(INSCRIPTIONS!O2:O1273,\"B320\")+COUNTIF(INSCRIPTIONS!P2:P1273,\"B320\")","v":0},{"$f":"COUNTIF(INSCRIPTIONS!N2:N1273,\"B321\")+COUNTIF(INSCRIPTIONS!O2:O1273,\"B321\")+COUNTIF(INSCRIPTIONS!P2:P1273,\"B321\")","v":0},null,null,null,{"$f":"COUNTIF(INSCRIPTIONS!N2:N1273,\"B375\")+COUNTIF(INSCRIPTIONS!O2:O1273,\"B375\")+COUNTIF(INSCRIPTIONS!P2:P1273,\"B375\")","v":0}]
[null,null,null,null,null,"ALLEMAND",null,null,null,null,null,null,null,"QI GONG",null,null,null,null,null,null,"PEINTURE SUR PORCELAINE"]
[null,null,null,null,null,null,null,"B220","B221","B222",null,null,null,"B330","B331","B332","B333","B334",null,null,null,null,"B376"]
[null,null,null,null,null,null,null,{"$f":"COUNTIF(INSCRIPTIONS!N2:N1273,\"B220\")+COUNTIF(INSCRIPTIONS!O2:O1273,\"B220\")+COUNTIF(INSCRIPTIONS!P2:P1273,\"B220\")","v":0},{"$f":"COUNTIF(INSCRIPTIONS!N2:N1273,\"B221\")+COUNTIF(INSCRIPTIONS!O2:O1273,\"B221\")+COUNTIF(INSCRIPTIONS!P2:P1273,\"B221\")","v":0},{"$f":"COUNTIF(INSCRIPTIONS!N2:N1273,\"B222\")+COUNTIF(INSCRIPTIONS!O2:O1273,\"B222\")+COUNTIF(INSCRIPTIONS!P2:P1273,\"B222\")","v":0},null,null,null,{"$f":"COUNTIF(INSCRIPTIONS!N2:N1273,\"B330\")+COUNTIF(INSCRIPTIONS!O2:O1273,\"B330\")+COUNTIF(INSCRIPTIONS!P2:P1273,\"B330\")","v":0},{"$f":"COUNTIF(INSCRIPTIONS!N2:N1273,\"B331\")+COUNTIF(INSCRIPTIONS!O2:O1273,\"B331\")+COUNTIF(INSCRIPTIONS!P2:P1273,\"B331\")","v":0},{"$f":"COUNTIF(INSCRIPTIONS!N2:N1273,\"B332\")+COUNTIF(INSCRIPTIONS!O2:O1273,\"B332\")+COUNTIF(INSCRIPTIONS!P2:P1273,\"B332\")","v":0},{"$f":"COUNTIF(INSCRIPTIONS!N2:N1273,\"B333\")+COUNTIF(INSCRIPTIONS!O2:O1273,\"B333\")+COUNTIF(INSCRIPTIONS!P2:P1273,\"B333\")","v":0},{"$f":"COUNTIF(INSCRIPTIONS!N2:N1273,\"B334\")+COUNTIF(INSCRIPTIONS!O2:O1273,\"B334\")+COUNTIF(INSCRIPTIONS!P2:P1273,\"B334\")","v":0},null,null,null,null,{"$f":"COUNTIF(INSCRIPTIONS!N2:N1273,\"B376\")+COUNTIF(INSCRIPTIONS!O2:O1273,\"B376\")+COUNTIF(INSCRIPTIONS!P2:P1273,\"B376\")","v":0}]
[null,null,null,null,null,"ESPAGNOL",null,null,null,null,null,null,null,"PILATES",null,null,null,null,null,null,"ART FLORAL"]
[null,null,null,null,null,null,null,null,"B230",null,null,null,null,null,null,"B340","B341",null,null,null,null,null,"B377"]
[null,null,null,null,null,null,null,null,{"$f":"COUNTIF(INSCRIPTIONS!N2:N1273,\"B230\")+COUNTIF(INSCRIPTIONS!O2:O1273,\"B230\")+COUNTIF(INSCRIPTIONS!P2:P1273,\"B230\")","v":0},null,null,null,null,null,null,{"$f":"COUNTIF(INSCRIPTIONS!N2:N1273,\"B340\")+COUNTIF(INSCRIPTIONS!O2:O1273,\"B340\")+COUNTIF(INSCRIPTIONS!P2:P1273,\"B340\")","v":0},{"$f":"COUNTIF(INSCRIPTIONS!N2:N1273,\"B341\")+COUNTIF(INSCRIPTIONS!O2:O1273,\"B341\")+COUNTIF(INSCRIPTIONS!P2:P1273,\"B341\")","v":0},null,null,null,null,null,{"$f":"COUNTIF(INSCRIPTIONS!N2:N1273,\"B377\")+COUNTIF(INSCRIPTIONS!O2:O1273,\"B377\")+COUNTIF(INSCRIPTIONS!P2:P1273,\"B377\")","v":0}]
[null,null,null,null,null,"RUSSE",null,null,null,null,null,null,null,"HYPNOSE",null,null,null,null,null,null,"RELIURE D'ART"]
[null,null,null,null,null,null,null,null,"B235",null,null,null,null,null,null,"B342",null,null,null,null,null,null,"B378"]
[null,null,null,null,null,null,null,null,{"$f":"COUNTIF(INSCRIPTIONS!N2:N1273,\"B235\")+COUNTIF(INSCRIPTIONS!O2:O1273,\"B235\")+COUNTIF(INSCRIPTIONS!P2:P1273,\"B235\")","v":0},null,null,null,null,null,null,{"$f":"COUNTIF(INSCRIPTIONS!N2:N1273,\"B342\")+COUNTIF(INSCRIPTIONS!O2:O1273,\"B342\")+COUNTIF(INSCRIPTIONS!P2:P1273,\"B342\")","v":0},null,null,null,null,null,null,{"$f":"COUNTIF(INSCRIPTIONS!N2:N1273,\"B378\")+COUNTIF(INSCRIPTIONS!O2:O1273,\"B378\")+COUNTIF(INSCRIPTIONS!P2:P1273,\"B378\")","v":0}]
[null,null,null,null,null,"INFORMATIQUE",null,null,null,null,null,null,null,"DO IN",null,null,null,null,null,null,"AQUARELLE ET DESSIN"]
[null,null,null,null,null,null,"B240","B241","B242","B243",null,null,null,null,null,"B355","B356",null,null,null,null,null,"B379"]
[null,null,null,null,null,null,{"$f":"COUNTIF(INSCRIPTIONS!N2:N1273,\"B240\")+COUNTIF(INSCRIPTIONS!O2:O1273,\"B240\")+COUNTIF(INSCRIPTIONS!P2:P1273,\"B240\")","v":0},{"$f":"COUNTIF(INSCRIPTIONS!N2:N1273,\"B241\")+COUNTIF(INSCRIPTIONS!O2:O1273,\"B241\")+COUNTIF(INSCRIPTIONS!P2:P1273,\"B241\")","v":0},{"$f":"COUNTIF(INSCRIPTIONS!N2:N1273,\"B242\")+COUNTIF(INSCRIPTIONS!O2:O1273,\"B242\")+COUNTIF(INSCRIPTIONS!P2:P1273,\"B242\")","v":0},{"$f":"COUNTIF(INSCRIPTIONS!N2:N1273,\"B243\")+COUNTIF(INSCRIPTIONS!O2:O1273,\"B243\")+COUNTIF(INSCRIPTIONS!P2:P1273,\"B243\")","v":0},null,null,null,null,null,{"$f":"COUNTIF(INSCRIPTIONS!N2:N1273,\"B355\")+COUNTIF(INSCRIPTIONS!O2:O1273,\"B355\")+COUNTIF(INSCRIPTIONS!P2:P1273,\"B355\")","v":0},{"$f":"COUNTIF(INSCRIPTIONS!N2:N1273,\"B356\")+COUNTIF(INSCRIPTIONS!O2:O1273,\"B356\")+COUNTIF(INSCRIPTIONS!P2:P1273,\"B356\")","v":0},null,null,null,null,null,{"$f":"COUNTIF(INSCRIPTIONS!N2:N1273,\"B379\")+COUNTIF(INSCRIPTIONS!O2:O1273,\"B379\")+COUNTIF(INSCRIPTIONS!P2:P1273,\"B379\")","v":0}]
[null,null,null,null,null,"DECORATION CULINAIRE",null,null,null,null,null,null,null,"SOPHROLOGIE CAYCEDIENNE"]
[null,null,null,null,null,null,null,null,"B260",null,null,null,null,null,null,"B360",null,null,null,null,"NOMBRE"]
[null,null,null,null,null,null,null,null,{"$f":"COUNTIF(INSCRIPTIONS!N2:N1273,\"B260\")+COUNTIF(INSCRIPTIONS!O2:O1273,\"B260\")+COUNTIF(INSCRIPTIONS!P2:P1273,\"B260\")","v":0},null,null,null,null,null,null,{"$f":"COUNTIF(INSCRIPTIONS!N2:N1273,\"B360\")+COUNTIF(INSCRIPTIONS!O2:O1273,\"B360\")+COUNTIF(INSCRIPTIONS!P2:P1273,\"B360\")","v":0},null,null,null,null,"HOMMES",null,null,"FEMMES"]
[null,null,null,null,null,"INITIATION A LA SCULPTURE SUR PIERRE",null,null,null,null,null,null,null,"AET THERAPIE",null,null,null,null,null,null,{"$f":"COUNTIF(INSCRIPTIONS!C2:C1273,\"H\")","v":0},null,null,{"$f":"COUNTIF(INSCRIPTIONS!D2:D1273,\"F\")","v":0}]
[null,null,null,null,null,null,null,null,"B261",null,null,null,null,null,null,"B361"]
[null,null,null,null,null,null,null,null,{"$f":"COUNTIF(INSCRIPTIONS!N2:N1273,\"B261\")+COUNTIF(INSCRIPTIONS!O2:O1273,\"B261\")+COUNTIF(INSCRIPTIONS!P2:P1273,\"B261\")","v":0},null,null,null,null,null,null,{"$f":"COUNTIF(INSCRIPTIONS!N2:N1273,\"B361\")+COUNTIF(INSCRIPTIONS!O2:O1273,\"B361\")+COUNTIF(INSCRIPTIONS!P2:P1273,\"B361\")","v":0},null,null,null,null,"NOMBRE INSCRITS"]
[null,null,null,null,null,"COUTURE",null,null,null,null,null,null,null,"ZUMB'AFRO",null,null,null,null,null,null,null,null,{"$f":"COUNTA(INSCRIPTIONS!A2:A1500)","v":0}]
[null,null,null,null,null,null,null,null,"B262",null,null,null,null,null,null,"B362"]
[null,null,null,null,null,null,null,null,{"$f":"COUNTIF(INSCRIPTIONS!N2:N1273,\"B262\")+COUNTIF(INSCRIPTIONS!O2:O1273,\"B262\")+COUNTIF(INSCRIPTIONS!P2:P1273,\"B262\")","v":0},null,null,null,null,null,null,{"$f":"COUNTIF(INSCRIPTIONS!N2:N1273,\"B362\")+COUNTIF(INSCRIPTIONS!O2:O1273,\"B362\")+COUNTIF(INSCRIPTIONS!P2:P1273,\"B362\")","v":0}]
[null,null,null,null,null,"HISTOIRE DE L'ART",null,null,null,null,null,null,null,"AROMATHERAPIE NUTRITION"]
[null,null,null,null,null,null,null,"B270","B271","B272",null,null,null,null,null,"B370","B371"]
[null,null,null,null,null,null,null,{"$f":"COUNTIF(INSCRIPTIONS!N2:N1273,\"B270\")+COUNTIF(INSCRIPTIONS!O2:O1273,\"B270\")+COUNTIF(INSCRIPTIONS!P2:P1273,\"B270\")","v":0},{"$f":"COUNTIF(INSCRIPTIONS!N2:N1273,\"B271\")+COUNTIF(INSCRIPTIONS!O2:O1273,\"B271\")+COUNTIF(INSCRIPTIONS!P2:P1273,\"B271\")","v":0},{"$f":"COUNTIF(INSCRIPTIONS!N2:N1273,\"B272\")+COUNTIF(INSCRIPTIONS!O2:O1273,\"B272\")+COUNTIF(INSCRIPTIONS!P2:P1273,\"B272\")","v":0},null,null,null,null,null,{"$f":"COUNTIF(INSCRIPTIONS!N2:N1273,\"B370\")+COUNTIF(INSCRIPTIONS!O2:O1273,\"B370\")+COUNTIF(INSCRIPTIONS!P2:P1273,\"B370\")","v":0},{"$f":"COUNTIF(INSCRIPTIONS!N2:N1273,\"B371\")+COUNTIF(INSCRIPTIONS!O2:O1273,\"B371\")+COUNTIF(INSCRIPTIONS!P2:P1273,\"B371\")","v":0}]

{"sheet":"DONNEES_CODES","index":1,"n_rows":1,"n_cols":17,"rows_kept":1,"cut":false,"hidden":false,"merged":[]}
["CODE","OBJET_1","OBJET_2","JOUR","HEURE","VILLE","LIEU","SEANCES","DUREE","NOM_RESP","PRE_RESP","TEL","MAIL","TARIF","MAX_PART","DEBUT","PARTICULARITE"]

{"sheet":"INSCRIPTIONS","index":2,"n_rows":1,"n_cols":21,"rows_kept":1,"cut":false,"hidden":false,"merged":[]}
["NOM","PRENOM","H","F","N°_ADHERENT","NE_LE","MAIL","TEL_FIX","TEL_POR","TEL_PRO","ADRESSE","CP","VILLE","CODE_1","CODE_2","CODE_3","VERSEMENT","CHEQUE","NUM","DATE_INS","COMMENTAIRE"]

{"sheet":"IMPRESSION","index":3,"n_rows":24,"n_cols":2,"rows_kept":24,"cut":false,"hidden":false,"merged":[[0,0,0,2]]}
["FICHE ADHERENT"]
[]
[]
["NOM",":"]
["PRENOM",":"]
["HOMME",":"]
["FEMME",":"]
["N° ADHERENT",":"]
["DATE NAISSANCE",":"]
["MAIL",":"]
["TEL. FIXE",":"]
["TEL. PORTABLE",":"]
["TEL. PRO",":"]
["ADRESSE",":"]
["CODE POSTAL",":"]
["VILLE",":"]
["CODE 1",":"]
["CODE 2",":"]
["CODE 3",":"]
["VERSEMENT",":"]
["CHEQUE",":"]
["NUMERAIRE",":"]
["DATE INSCRIPTION",":"]
["COMMENTAIRE",":"]